[Event "ITT 1st Parada Jamundi 2022"]
[Site "Jamundi Valle"]
[Date "2022.12.11"]
[Round "10.1"]
[White "Paredes Lagos, Anthony Javier"]
[Black "Henriquez Villagra, Cristobal"]
[Result "0-1"]
[ECO "D11"]
[WhiteElo "2230"]
[BlackElo "2587"]
[Annotator "TA"]
[PlyCount "136"]
[EventDate "2022.12.05"]
[EventType "swiss"]
[EventCountry "COL"]
[SourceTitle "playchess.com"]
[Source "ChessBase"]
[SourceQuality "1"]
[TimeControl "5400+30"]

{[%evp 9,136,0,0,-9,-9,-14,0,0,0,0,22,9,7,0,18,21,22,8,20,15,19,22,25,17,27,18,12,-80,-85,-102,-74,-73,64,-37,0,-125,-123,-139,-134,-119,-124,-114,-149,-239,-14,-97,-89,-101,-101,-125,-37,-36,-20,-20,-39,-91,-76,-131,-131,-162,-175,-183,-182,-195,-194,-187,-172,-535,-518,-487,-472,-464,-454,-428,-341,-447,-320,-307,-296,-293,-231,-252,-240,-230,-219,-222,-44,-51,-44,-44,-51,-51,-51,-1470,-1370,-1023,-984,-1704,-1270,-29949,-29955,-29954,-11166,-29968,-29969,-29969,-29970,-29970,-29969,-29968,-29969,-29976,-29978,-29978,-576,-29979,-29980,-29980,-29981,-29981,-29982,-29982,-29982,-29984,-29985,-29986,-29987,-29990,-29988]} 1. d4 {[%emt 0:08:44]} Nf6 {[%emt 0:01:32]} 2. g3 {[%emt 0:00:51]} d5 {[%emt 0:00:43]} 3. Nf3 {[%emt 0:00:31]} c6 {[%emt 0:00:37]} 4. c4 {[%emt 0:00:20]} Bf5 {[%emt 0:01:37]} 5. Qb3 {[%emt 0:00:21]} Qb6 {[%emt 0:01:41]} 6. c5 {[%emt 0:01:19] D11: Slav Defence: 3 Nf3 sidelines and 3...Nf6 4 e3 Bg4.} Qxb3 {[%emt 0:00:22]} 7. axb3 {[%emt 0:00:08]} Nbd7 {[%emt 0:02:18]} 8. b4 {[%emt 0:01:16] The position is equal.} a6 {[%emt 0:00:37]} 9. Nc3 {[%emt 0:00:15][%cal Ob4b5]} Rc8 {[%emt 0:01:06]} 10. Bg2 {[%emt 0:05:50]} h6 {[%emt 0:00:54]} 11. O-O {[%emt 0:01:04]} e6 {[%emt 0:04:03]} 12. Nd2 {[%emt 0:07:43]} g5 $5 {[%emt 0:01:55][%mdl 4] Leaves trodden paths.} 13. f3 {[%emt 0:09:20]} Bc2 {[%emt 0:02:37]} 14. e4 {[%emt 0:03:16]} Bg7 {[%emt 0:00:43][%cal Bf8g7,Bg7d4,Bd4c3][%mdl 32] [#]} 15. Re1 $146 {[%emt 0:09:01]} ({Predecessor:} 15. e5 Ng8 16. f4 Ne7 17. Rf2 gxf4 18. gxf4 Nf5 19. Nf3 Bd3 20. Ra3 Bc4 21. Bh3 {½-½ (102) Oparin,G (2652)-Costachi,M (2471) Chess.com INT 2020}) 15... Ng8 {[%emt 0:08:32]} 16. exd5 {[%emt 0:01:46] Nde4 is the strong threat.} Bxd4+ {[%emt 0:00:39]} 17. Kh1 {[%emt 0:00:05]} Bxc3 {[%emt 0:00:37]} 18. dxc6 {[%emt 0:17:05]} (18. bxc3 $11 cxd5 19. c4) 18... Bxb4 $17 {[%emt 0:01:56]} 19. cxb7 {[%emt 0:00:01]} Rxc5 {[%emt 0:12:12]} (19... Rc6 {keeps more tension.} 20. f4 Ne7 21. fxg5 hxg5 22. Bxc6 Nxc6 23. Rxa6 Ndb8) 20. Rxa6 {[%emt 0:00:02]} Rd5 {[%emt 0:00:30]} ({Black should try} 20... Kd8 $1 $17 {[%cal Rd8c7] And now ...Kc7 would win.} 21. Rb6 Bxd2) 21. f4 {[%emt 0:01:06]} (21. Ra8+ $14 Ke7 22. Re2) 21... Bxd2 {[%emt 0:07:01]} (21... Nb8 $5 {[%cal Rb8a6]} 22. Ra8 Rd8 $11) 22. Bxd2 (22. Re2 $11 {remains equal.} Bxc1 23. Bxd5) 22... Rxd2 {[%emt 0:02:35]} 23. Bc6 {[%emt 0:07:04]} Kd8 $1 {[%emt 0:03:02] Inhibits b8Q+.} 24. Ra8+ {[%emt 0:02:40]} Kc7 {[%emt 0:00:01]} 25. Rc8+ {[%emt 0:00:28]} Kb6 {[%emt 0:00:04]} 26. Re5 {[%emt 0:02:13] [#]} (26. Bg2 $17 {was necessary.} Rxg2 27. Kxg2) 26... Ba4 $2 {[%emt 0:01:28]} 27. Bxa4 {[%emt 0:00:49]} (27. b8=R+ $11 {keeps the balance.} Nxb8 28. Bxa4) 27... Kxb7 {[%emt 0:00:13]} 28. Bxd7 {[%emt 0:01:46]} Rxd7 {[%emt 0:00:08]} 29. Rec5 {[%emt 0:00:26]} g4 {[%emt 0:10:33]} (29... f5 $17 {aiming for ...Rdh7.} 30. Rf8 Rg7) 30. Re8 $15 {[%emt 0:03:11]} Rc7 {[%emt 0:07:45]} 31. Rb5+ {[%emt 0:00:04]} Kc6 {[%emt 0:00:14]} 32. Rbb8 {[%emt 0:01:15]} (32. Rb3 $15) 32... Kd5 $17 {[%emt 0:00:06][%cal Od5e4]} 33. Red8+ {[%emt 0:02:15]} (33. Kg2 $142) 33... Ke4 {[%emt 0:00:06][%cal Oh6h5]} 34. Kg2 {[%emt 0:00:54] Prevents h5.} Rc2+ {[%emt 0:04:35]} 35. Kg1 {[%emt 0:00:02] [#]} h5 $1 {[%emt 0:02:39][%cal Oh5h4]} 36. Rb5 {[%emt 0:02:56] White threatens Re5+ and mate.} (36. Rb4+ Kf3) 36... f6 {[%emt 0:05:30] Inhibits Re5+.} 37. Re8 {[%emt 0:00:05]} Rc6 {[%emt 0:00:46]} 38. h4 $2 {[%emt 0:00:04]} (38. Rb4+ Kf5 39. Rb5+ Kg6 40. b4) 38... gxh3 $19 {[%emt 0:01:03]} 39. Kh2 {[%emt 0:00:36]} h4 {[%emt 0:02:18] ( -> ...hxg3+)} 40. Kxh3 {[%emt 0:01:17]} hxg3+ {[%emt 0:02:14]} 41. Kxg3 {[%emt 0:00:06]} Rd6 {[%emt 0:01:26]} 42. Rbb8 {[%emt 0:01:39] [#]} Kf5 $1 {[%emt 0:01:17] Hoping for ...Rd3+.} 43. Rb5+ {[%emt 0:01:45]} Kg6 {[%emt 0:00:04]} 44. Rbb8 {[%emt 0:00:06]} Kf7 {[%emt 0:00:43]} 45. b4 {[%emt 0:01:14]} Rd3+ {[%emt 0:01:22]} 46. Kg2 {[%emt 0:00:08]} Rd2+ {[%emt 0:04:47]} 47. Kg3 {[%emt 0:00:15]} Rb2 $2 {[%emt 0:00:46]} ({Avoid the trap} 47... Rd3+ $2 48. Kg2) (47... Rd5 $19 {Strongly threatening ...e5.} 48. Kf3 Rdh5) 48. Rf8+ $1 $15 {[%emt 0:00:26]} Kg6 {[%emt 0:00:13]} 49. Rxg8+ {[%emt 0:09:16]} Rxg8 {[%emt 0:00:03]} 50. Rxg8+ {[%emt 0:00:06][%mdl 4096] Endgame KR-KR} Kf5 {[%emt 0:00:02] Threatens to win with ...Rb3+.} 51. Rb8 $2 {[%emt 0:00:53][%mdl 8192] This costs White the game.} (51. Rf8 $15) 51... Rb3+ $19 {[%emt 0:00:03]} 52. Kf2 {[%emt 0:00:54]} Kxf4 {[%emt 0:00:05]} 53. Rb6 {[%emt 0:00:26]} Ke5 {[%emt 0:00:47]} 54. Rb8 {[%emt 0:01:25]} f5 {[%emt 0:00:20]} 55. b5 {[%emt 0:00:39]} Ke4 {[%emt 0:00:13]} (55... f4 $142 56. b6 Ke4 57. Kg2 e5 58. b7 Rb2+ 59. Kg1 f3 60. Kh1 Ke3 61. Re8 Rxb7 62. Rxe5+ Kf2 63. Rh5 Ke2 64. Re5+ Kf1 65. Kh2 Rf7 66. Ra5 f2 67. Ra2 Ke1 68. Ra1+ Ke2 69. Ra2+ Ke3 70. Ra3+ Kd4 71. Ra4+ Kc3 72. Ra1 f1=Q 73. Rxf1 Rxf1 74. Kg3 Kd4 75. Kg4 Ke5 76. Kg3 Ke4 77. Kg4 Rg1+ 78. Kh4 Ke3 79. Kh3 Kf4 80. Kh2 Rg3 81. Kh1 Ke3 82. Kh2 Kf2 83. Kh1 Rh3#) 56. b6 {[%emt 0:00:23]} e5 {[%emt 0:00:17]} 57. b7 {[%emt 0:00:37]} f4 {[%emt 0:00:04]} 58. Ke2 {[%emt 0:00:22]} f3+ {[%emt 0:01:11]} 59. Kf2 {[%emt 0:00:30]} Rb2+ {[%emt 0:02:11]} 60. Kg1 {[%emt 0:00:01]} Ke3 {[%emt 0:03:34]} 61. Re8 {[%emt 0:00:02]} Rb1+ {[%emt 0:00:16]} ({Inferior is} 61... Rxb7 62. Rxe5+ Kd4 63. Re8 $11) 62. Kh2 {[%emt 0:00:01]} Rxb7 {[%emt 0:00:37] Black mates.} 63. Rxe5+ {[%emt 0:00:03] [#]} Kf2 $1 {[%emt 0:00:02]} 64. Rh5 {[%emt 0:01:07]} Rf7 {[%emt 0:00:25]} 65. Rh8 {[%emt 0:00:11]} Kf1 {[%emt 0:00:41]} 66. Rb8 {[%emt 0:02:10]} f2 {[%emt 0:00:10]} 67. Rb2 {[%emt 0:00:31]} Ke1 {[%emt 0:00:17]} 68. Ra2 {[%emt 0:00:33]} f1=Q {[%emt 0:00:32] Weighted Error Value: White=0.55/Black=0.34} 0-1

[Event "ITT 1st Parada Jamundi 2022"]
[Site "Jamundi Valle"]
[Date "2022.12.11"]
[Round "10.2"]
[White "Cardoso Cardoso, Jose Gabriel"]
[Black "Delgado Ramirez, Neuris"]
[Result "1-0"]
[ECO "E48"]
[WhiteElo "2483"]
[BlackElo "2572"]
[Annotator "TA"]
[PlyCount "131"]
[EventDate "2022.12.05"]
[EventType "swiss"]
[EventCountry "COL"]
[SourceTitle "playchess.com"]
[Source "ChessBase"]
[SourceQuality "1"]
[TimeControl "5400+30"]

{[%evp 11,131,6,-5,0,10,0,25,19,9,0,0,0,0,0,0,-12,0,0,0,0,0,-39,-34,-40,-45,-67,-60,-63,-27,-31,-13,-18,-27,-21,0,0,31,30,33,32,41,41,53,48,50,45,41,40,56,59,121,73,91,0,0,0,0,-29,-27,-12,111,77,59,70,238,236,555,412,577,512,506,482,531,566,575,562,565,501,600,572,570,585,550,525,627,606,614,578,589,587,507,492,690,658,668,653,597,628,734,750,1128,1110,1421,1388,1426,1364,1137,888,952,79,79,74,29982,29983,29983,29984,29986,29987,29987,29987,29987,29988]} 1. d4 {[%emt 0:05:57]} Nf6 {[%emt 0:00:50]} 2. c4 {[%emt 0:00:17]} e6 {[%emt 0:00:08]} 3. Nc3 {[%emt 0:00:19]} Bb4 {[%emt 0:00:04]} 4. e3 {[%emt 0:00:16]} O-O {[%emt 0:00:11]} 5. Bd3 {[%emt 0:00:07]} d5 {[%emt 0:00:41]} 6. cxd5 {[%emt 0:00:08]} exd5 {[%emt 0:00:12]} 7. a3 {[%emt 0:00:09] E48: Nimzo-Indian: Rubinstein: 5 Bd3 d5 including 6 Ne2, but excluding 6 a3.} Be7 {[%emt 0:01:02]} 8. Nge2 {[%emt 0:00:35]} a5 {[%emt 0:01:55] [#]} 9. Qc2 $146 {[%emt 0:01:22] White has an edge.} ({Predecessor:} 9. O-O Re8 10. Qc2 Na6 11. Nf4 c6 12. Bd2 Nc7 13. Rae1 Ne6 14. Nxe6 Bxe6 15. Na4 {0-1 (38) Drygalov,S (2547)-Yu,Y (2716) Chess.com INT 2022}) 9... Na6 {[%emt 0:06:02]} 10. Bd2 {[%emt 0:00:56]} c5 {[%emt 0:00:34]} 11. O-O {[%emt 0:05:09]} c4 {[%emt 0:03:28]} 12. Bf5 {[%emt 0:00:38]} Bxf5 {[%emt 0:00:07]} 13. Qxf5 {[%emt 0:00:06]} Nc7 {[%emt 0:00:08]} 14. a4 {[%emt 0:16:47] Prevents b5.} Bb4 {[%emt 0:01:56]} 15. f3 {[%emt 0:01:07]} Re8 {[%emt 0:01:08]} 16. g4 {[%emt 0:06:51]} b5 {[%emt 0:04:11]} 17. Nf4 {[%emt 0:06:07]} g6 {[%emt 0:16:22] Prevents g5.} 18. Qb1 {[%emt 0:05:54]} bxa4 {[%emt 0:00:47]} 19. Rxa4 {[%emt 0:00:37]} Qd6 {[%emt 0:04:47]} 20. Kg2 {[%emt 0:05:50]} Nd7 {[%emt 0:00:48]} 21. h4 {[%emt 0:01:09][%cal Bh2h4,Bh4h5][%mdl 32]} Bxc3 {[%emt 0:03:06]} 22. bxc3 {[%emt 0:00:19]} Reb8 {[%emt 0:00:03]} (22... Nb6 $5 {[%cal Rb6a4]} 23. Ra2 a4 $11) 23. Qc2 {[%emt 0:06:29]} Qb6 {[%emt 0:01:06]} 24. Rfa1 {[%emt 0:03:28]} Qb3 {[%emt 0:03:40]} 25. Qc1 {[%emt 0:00:33]} Qb5 {[%emt 0:02:07]} 26. h5 {[%emt 0:06:05]} Nb6 {[%emt 0:00:37]} 27. R4a2 {[%emt 0:00:09]} a4 {[%emt 0:00:06]} 28. Qh1 {[%emt 0:02:03]} g5 {[%emt 0:02:03] Inhibits Qh4.} 29. Ne2 {[%emt 0:00:14]} h6 {[%emt 0:00:35]} 30. Ng3 {[%emt 0:00:50]} Qe8 {[%emt 0:01:41]} ({Black should try} 30... Qc6 $14) 31. Nf5 {[%emt 0:02:31]} (31. e4 $142) 31... Qe6 $16 {[%emt 0:00:11]} 32. Kf2 {[%emt 0:02:41] White is more active.} (32. Re1 $16) 32... Ne8 $11 {[%emt 0:01:00]} 33. e4 {[%emt 0:03:35]} dxe4 {[%emt 0:04:22] White must now prevent ...Nd6.} 34. fxe4 {[%emt 0:00:15] Threatens to win with d5.} (34. Re1 $5 {[%cal Re1e4]}) 34... Nf6 {[%emt 0:00:12][%csl LRe4,LRg4]} 35. Re1 {[%emt 0:04:13]} Nxg4+ {[%emt 0:00:39]} (35... Re8 $1 $11 {remains equal.}) 36. Kg3 {[%emt 0:00:29][%mdl 64] [#] Deflection} Nf6 {[%emt 0:00:09] And now ...Ra5 would win.} 37. Nxh6+ {[%emt 0:03:27]} Kh7 $2 {[%emt 0:00:25]} ({Black should play} 37... Kh8 $14) 38. Bxg5 $18 {[%emt 0:00:42] Really sharp!} (38. Nf5 $2 Re8 39. Kh2 (39. Bxg5 $2 Nxe4+ 40. Qxe4 Qxe4 $19) (39. Rb2 $2 a3 $19) 39... Nxe4 $17) 38... Nfd7 $2 {[%emt 0:08:13]} (38... Rg8 {is more resistant.} 39. Nxg8 Rxg8) 39. Qf3 {[%emt 0:01:05]} Ra5 {[%emt 0:04:54]} (39... Rf8 $142 40. Kh2 Ra5) 40. Qxf7+ {[%emt 0:01:47]} Qxf7 {[%emt 0:00:42]} 41. Nxf7 {[%emt 0:00:01]} Rf8 {[%emt 0:01:02]} 42. Rf1 {[%emt 0:00:14]} Kg8 {[%emt 0:02:53]} 43. Nh6+ {[%emt 0:00:30]} Kh7 {[%emt 0:00:11]} 44. Rf5 {[%emt 0:02:07]} Rfxf5 {[%emt 0:00:30]} 45. Nxf5 {[%emt 0:00:06]} (45. exf5 Nd5 $16) 45... Rb5 {[%emt 0:00:08]} 46. Be7 {[%emt 0:00:22]} Rb3 {[%emt 0:01:14]} 47. Bb4 {[%emt 0:00:05]} Nf6 {[%emt 0:00:18]} 48. Kf4 {[%emt 0:00:26]} Rb1 {[%emt 0:02:28]} 49. Ng3 {[%emt 0:00:27]} Nfd7 {[%emt 0:00:25]} 50. d5 {[%emt 0:01:04]} Kg7 {[%emt 0:00:13]} 51. Nf5+ {[%emt 0:09:22]} Kf7 {[%emt 0:00:08]} (51... Kh8 $142 52. Ng3 Kg8) 52. Ne3 {[%emt 0:00:00]} Nf6 {[%emt 0:00:28]} 53. Bc5 {[%emt 0:00:00]} Nxh5+ {[%emt 0:01:49]} 54. Kf3 {[%emt 0:00:00]} Nd7 {[%emt 0:03:57]} 55. Bd4 {[%emt 0:00:00]} Rg1 {[%emt 0:02:42]} 56. e5 {[%emt 0:00:00]} Kg6 {[%emt 0:00:05]} 57. Rxa4 {[%emt 0:00:00]} Rg3+ {[%emt 0:00:51]} 58. Ke4 {[%emt 0:00:00]} Rh3 {[%emt 0:00:04]} 59. Rxc4 {[%emt 0:00:00]} Ng3+ {[%emt 0:00:15]} 60. Kf4 $2 {[%emt 0:00:00]} (60. Kd3 $18 {aiming for Rc6+.} Nf5 61. Rc6+ Kg5 62. Kd2 Rh2+ 63. Ke1 Rh1+ 64. Kf2 Rh2+ 65. Kg1) 60... Ne2+ $16 {[%emt 0:02:02] [#]} 61. Kg4 $1 {[%emt 0:00:00]} ({Less strong is} 61. Ke4 Rh4+ 62. Kd3 Nf4+ 63. Kc2 Nf8 64. Rc6+ Kf7 $18) 61... Rxe3 $2 {[%emt 0:01:14][%mdl 8192]} 62. Rc6+ {[%emt 0:00:00] White mates.} Kf7 {[%emt 0:02:24]} 63. e6+ {[%emt 0:00:00]} ({Stronger than} 63. Bxe3 Nxe5+ 64. Kh4 Nxc6 $11) 63... Ke7 {[%emt 0:00:38]} 64. Bxe3 {[%emt 0:00:26]} ({Inferior is} 64. d6+ Kxe6 65. Bxe3 Ne5+ 66. Kh5 Nxc6 $11) 64... Ne5+ {[%emt 0:02:15]} 65. Kf5 {[%emt 0:00:06]} Nxc6 {[%emt 0:00:15]} 66. Bc5+ {[%emt 0:00:14] Weighted Error Value: White=0.17 (very precise) /Black=0.38} 1-0

[Event "ITT 1st Parada Jamundi 2022"]
[Site "Jamundi Valle"]
[Date "2022.12.11"]
[Round "10.3"]
[White "Arango Arenas, Juan Camilo"]
[Black "Cruz, Cristhian"]
[Result "0-1"]
[ECO "B21"]
[WhiteElo "2202"]
[BlackElo "2552"]
[Annotator "TA"]
[PlyCount "44"]
[EventDate "2022.12.05"]
[EventType "swiss"]
[EventCountry "COL"]
[SourceTitle "playchess.com"]
[Source "ChessBase"]
[SourceQuality "1"]
[TimeControl "5400+30"]

{[%evp 13,44,-25,-29,-31,-36,-33,-31,-95,-96,-85,-87,-85,-93,-159,-97,-135,-150,-122,-77,-81,-46,-96,-81,-187,-181,-182,-174,-175,-122,-368,-368,-727,43]} 1. e4 {[%emt 1:31:00]} c5 {[%emt 1:31:00]} 2. d4 {[%emt 0:00:30]} cxd4 {[%emt 0:00:30]} 3. c3 {[%emt 0:00:30]} dxc3 {[%emt 0:00:30]} 4. Nxc3 {[%emt 0:00:30]} Nc6 {[%emt 0:00:30]} 5. Nf3 {[%emt 0:00:30]} g6 {[%emt 0:00:30]} 6. Bc4 {[%emt 0:00:30]} Bg7 {[%emt 0:00:30]} 7. O-O {[%emt 0:00:30]} d6 $1 {[%emt 0:00:30] The main line 7...d6 scores better than 7...Nf6.} 8. Qb3 {[%emt 0:00:30] B21: Sicilian: 2 f4 and Morra Gambit.} Na5 {[%emt 0:00:30]} 9. Bb5+ {[%emt 0:00:30]} (9. Bxf7+ Kf8 10. Qd5 Nf6 $17) 9... Bd7 {[%emt 0:00:30] [#]} 10. Qa3 $146 {[%emt 0:00:30]} (10. Qa4 $15 Nc6 11. Rd1) ({Predecessor:} 10. Qa4 Nc6 11. Rd1 a6 12. Bxc6 bxc6 13. e5 d5 14. Qd4 f6 15. Bf4 fxe5 16. Bxe5 {0-1 (84) Hng,M (2000)-Srdanovic,J (2127) Novi Sad 2022}) 10... Bxb5 $17 {[%emt 0:00:30]} 11. Nxb5 {[%emt 0:00:30]} Nf6 {[%emt 0:00:30]} 12. Rd1 {[%emt 0:00:30]} O-O $1 {[%emt 0:00:30]} ({Don't play} 12... Nxe4 $6 13. Qa4 Nc5 14. Nxd6+ (14. Nxa7+ $2 {is the wrong capture.} Nxa4 15. Nb5 Nc4 $19) (14. Nc7+ Kf8 $17) 14... Kf8 15. Nxf7 $11) 13. e5 {[%emt 0:00:30] [#]} (13. Nc3 $142) 13... Ne4 {[%emt 0:00:30]} (13... Ng4 $142 $1 {...Qb6 is the strong threat.} 14. exd6 Qb6) 14. Qd3 {[%emt 0:00:30]} dxe5 {[%emt 0:00:30] aiming for ...Qxd3.} 15. Qe2 {[%emt 0:00:30]} Nd6 {[%emt 0:00:30]} 16. Nxe5 Qc8 17. Bd2 {[%emt 0:01:00]} (17. Nxd6 $15 exd6 18. Ng4 (18. Rxd6 $2 {too greedy.} Bxe5 19. Qxe5 Nc4 $19)) 17... Nc6 {[%emt 0:01:00]} (17... Qe6 {simplifies} 18. Bxa5 Qxe5 19. Qxe5 Bxe5 20. Nxd6 Bxd6 21. Bd2 f6) 18. Bc3 {[%emt 0:00:30] [#]} (18. Nxc6 $17 {might work better.} bxc6 19. Nc3) 18... Nxb5 $1 $19 {[%emt 0:00:30]} 19. Qxb5 {[%emt 0:00:30]} Qf5 {[%emt 0:00:30]} 20. Re1 {[%emt 0:00:30]} Rfd8 {[%emt 0:00:30]} ({Better is} 20... Rac8 $19 {White must now prevent ...Nxe5.} 21. g4 Qg5) 21. Re2 $2 {[%emt 0:00:30]} (21. Qe2 $17) 21... Bxe5 {[%emt 0:00:30]} 22. Bxe5 {[%emt 0:00:30]} (22. Rxe5 Nxe5 23. Qxe5 Qxe5 24. Bxe5) 22... Nb8 $2 {[%emt 0:00:30][%mdl 32768] Weighted Error Value: White=0.73/Black=0.13 (very precise) . Loss on time!?} ({Black should play} 22... Nd4 $19 23. Qc4 Rac8 24. Qxd4 Rxd4 25. Bxd4 Qd3 26. Rxe7 Qxd4) 0-1

[Event "ITT 1st Parada Jamundi 2022"]
[Site "Jamundi Valle"]
[Date "2022.12.11"]
[Round "10.4"]
[White "Mirzoev, Azer"]
[Black "Campos Gomez, Manuel"]
[Result "1-0"]
[ECO "E09"]
[WhiteElo "2462"]
[BlackElo "2322"]
[Annotator "TA"]
[PlyCount "49"]
[EventDate "2022.12.05"]
[EventType "swiss"]
[EventCountry "COL"]
[SourceTitle "playchess.com"]
[Source "ChessBase"]
[SourceQuality "1"]
[TimeControl "5400+30"]

{[%evp 22,48,4,6,39,43,38,25,58,53,150,143,314,243,447,437,450,182,235,250,641,631,629,617,614,615,900,898,29999]} 1. d4 {[%emt 0:01:56]} d5 {[%emt 0:04:26]} 2. Nf3 {[%emt 0:00:07]} Nf6 {[%emt 0:00:05]} 3. c4 {[%emt 0:00:04]} c6 {[%emt 0:00:04]} 4. Qc2 {[%emt 0:00:07]} e6 {[%emt 0:00:38]} 5. g3 {[%emt 0:00:07]} Nbd7 {[%emt 0:00:20]} 6. Bg2 {[%emt 0:00:06]} Be7 {[%emt 0:08:55]} 7. O-O {[%emt 0:01:20]} O-O {[%emt 0:00:15]} 8. Rd1 {[%emt 0:00:34]} b6 {[%emt 0:02:07]} 9. Nbd2 {[%emt 0:01:32]} Ba6 {[%emt 0:03:01]} 10. b3 {[%emt 0:04:14]} c5 {[%emt 0:11:49]} 11. Bb2 {[%emt 0:07:26]} Rc8 {[%emt 0:06:34]} 12. Rac1 {[%emt 0:00:28]} Qc7 {[%emt 0:06:26] E09: Closed Catalan: Main Line: 7 Qc2 c6 8 Nbd2.} 13. Qb1 {[%emt 0:01:01]} Qb8 {[%emt 0:01:08]} 14. cxd5 {[%emt 0:00:44]} Nxd5 {[%emt 0:02:58] White has an edge.} 15. Nc4 {[%emt 0:00:13] [#]} b5 $146 {[%emt 0:09:48]} ({Black should play} 15... N5f6 $14) ({Predecessor:} 15... cxd4 16. Nxd4 N7f6 17. e4 Bxc4 18. bxc4 Nb4 19. e5 Ng4 20. a3 Na6 21. Qe4 Nxe5 22. Nxe6 {1-0 (30) Stohl,I (2525)-Martinovsky,E (2305) Isle of Man 1995}) 16. Nce5 $16 {[%emt 0:00:47]} N7f6 {[%emt 0:00:29]} (16... Nxe5 $16 17. Nxe5 Qb7) 17. Ng5 {[%emt 0:16:32] [#] Bxd5 is the strong threat.} Rc7 $2 {[%emt 0:19:14]} (17... h6) 18. dxc5 $18 {[%emt 0:03:03]} h6 {[%emt 0:01:37]} 19. Ne4 {[%emt 0:01:14]} (19. Nexf7 $142 Rxf7 20. Nxf7 Kxf7 21. e4) 19... Nxe4 {[%emt 0:00:10]} (19... b4 {keeps fighting.} 20. e3 Bb5 21. Nxf6+ Nxf6) 20. Qxe4 {[%emt 0:01:27]} Bxc5 $2 {[%emt 0:00:17] [#]} (20... Bf6 21. c6 b4) 21. Rxc5 $1 {[%mdl 512]} Rxc5 {[%emt 0:00:02]} 22. Nd7 {[%emt 0:07:42][%csl LRb8,LRc5,LRf8]} Qc7 {[%emt 0:02:02]} 23. Nxc5 {[%emt 0:08:24]} ({Less strong is} 23. Qd4 Nc3 24. Re1 (24. Qxc5 Qxc5 25. Nxc5 Nxd1 $17) 24... Rc8 $16) 23... Qxc5 {[%emt 0:00:48]} 24. Qe5 {[%emt 0:03:08][%csl Gb2,LRd5,LRg7][%cal Re5g7] Prevents Nc3.} g6 {[%emt 0:02:56]} 25. Qg7# {[%emt 0:00:42] White took control after the opening.   Weighted Error Value: White=0.46/Black=1.42} 1-0

[Event "ITT 1st Parada Jamundi 2022"]
[Site "Jamundi Valle"]
[Date "2022.12.11"]
[Round "10.5"]
[White "Argote Heredia, Valentina"]
[Black "Rios, Cristhian Camilo"]
[Result "1/2-1/2"]
[ECO "B33"]
[WhiteElo "2140"]
[BlackElo "2456"]
[Annotator "TA"]
[PlyCount "51"]
[EventDate "2022.12.05"]
[EventType "swiss"]
[EventCountry "COL"]
[SourceTitle "playchess.com"]
[Source "ChessBase"]
[SourceQuality "1"]
[TimeControl "5400+30"]

{[%evp 24,25,50,0]} 1. e4 {[%emt 0:04:56]} c5 {[%emt 0:00:09]} 2. Nf3 {[%emt 0:00:12][%cal Bg1f3,Bf3d4,Bd4b5][%mdl 32]} Nc6 {[%emt 0:00:07]} 3. d4 {[%emt 0:00:22]} cxd4 {[%emt 0:00:09]} 4. Nxd4 {[%emt 0:00:09]} Nf6 {[%emt 0:00:09]} 5. Nc3 {[%emt 0:00:05]} e5 {[%emt 0:00:08]} 6. Ndb5 {[%emt 0:00:13]} d6 {[%emt 0:00:07]} 7. Bg5 {[%emt 0:00:36]} a6 {[%emt 0:00:08]} 8. Na3 {[%emt 0:00:08]} b5 {[%emt 0:00:07]} 9. Nd5 {[%emt 0:00:19]} Qa5+ {[%emt 0:00:10]} 10. Bd2 {[%emt 0:00:31]} Qd8 {[%emt 0:00:08]} 11. Bg5 {[%emt 0:00:07]} Qa5+ {[%emt 0:00:08] 11...Rb8 is a critical line.} 12. Bd2 {[%emt 0:00:12]} Qd8 {[%emt 0:00:07]} 13. Bg5 {[%emt 0:00:04] [#]} (13. Bd3 $14) {Predecessor:} 13... Be7 $146 {B33: Sicilian: Pelikan and Sveshnikov Variations.} 14. Bxf6 Bxf6 15. c4 b4 16. Nc2 a5 17. Be2 O-O 18. O-O g6 19. Bg4 Bb7 20. Qd3 Bg7 21. Rad1 Nd4 22. Nxd4 exd4 23. b3 Ra7 24. g3 Re8 25. Bf3 Bxd5 26. exd5 {½-½ (85) Kamsky,G (2666)-Firouzja,A (2785) Chess.com INT 2022} 1/2-1/2